bitfinex-derivatives/quotes_SOLF0:USTF0_20250830
["timestamp","ask_amount","ask_price","bid_price","bid_amount"]
[1756586265742,7.37,200.23,200.21,8.13]
[1756586265943,7.37,200.33,200.21,8.13]
[1756586266144,0.5,200.24,200.21,8.13]
[1756586266742,0.5,200.24,200.18,5.53823852]
[1756586266942,7.87,200.21,200.18,8.13]
[1756586267136,7.37,200.2,200.17,3.15157175]
[1756586268041,7.37,200.2,200.17,11.28157175]
[1756586268244,0.5,200.19,200.17,11.28157175]
[1756586269249,0.5,200.19,200.18,8.13]
[1756586270445,7.37,200.24,200.18,8.13]
[1756586270645,0.5,200.2,200.18,8.13]
[1756586271046,0.5,200.2,200.17,3.15157175]
[1756586271244,0.5,200.2,200.18,8.13]
[1756586272138,0.5,200.2,200.17,3.15157175]
[1756586272442,0.5,200.2,200.18,8.13]
[1756586272642,0.5,200.2,200.17,3.15157175]
[1756586272837,0.5,200.2,200.16,5.53823852]
[1756586273042,0.5,200.2,200.18,11.28157175]
[1756586273946,0.5,200.2,200.19,8.13]
[1756586276848,0.5,200.2,200.18,11.28157175]
[1756586277644,7.37,200.28,200.18,11.28157175]
[1756586277851,0.5,200.19,200.18,11.28157175]
[1756586278851,7.37,200.18,200.14,5.53823852]
[1756586279050,7.37,200.25,200.14,5.53823852]
[1756586279247,7.37,200.17,200.14,8.13]
[1756586279447,7.87,200.17,200.14,8.13]
[1756586279650,7.37,200.17,200.14,8.13]
[1756586279853,7.37,200.25,200.14,8.13]
[1756586280048,0.5,200.17,200.14,8.13]
[1756586280446,0.5,200.17,200.13,8.68981027]
[1756586280650,0.5,200.17,200.14,13.66823852]
[1756586280854,0.5,200.17,200.14,5.53823852]
[1756586281549,0.5,200.17,200.15,8.13]
[1756586281754,7.37,200.23,200.17,8.13]
[1756586281950,0.5,200.19,200.17,8.13]
[1756586282255,0.5,200.19,200.16,3.15157175]
[1756586282450,0.5,200.19,200.17,8.13]
[1756586282856,0.5,200.19,200.16,3.15157175]
[1756586283057,0.5,200.19,200.17,8.13]
[1756586283357,0.5,200.19,200.16,3.15157175]
[1756586283955,0.5,200.19,200.17,8.13]
[1756586284649,0.5,200.19,200.16,3.15157175]
[1756586284856,0.5,200.19,200.17,8.13]
[1756586285157,0.5,200.19,200.16,3.15157175]
[1756586285356,0.5,200.19,200.17,8.13]
[1756586285753,0.5,200.19,200.16,3.15157175]
[1756586286257,0.5,200.19,200.17,8.13]
[1756586286458,0.5,200.19,200.16,3.15157175]
[1756586286850,0.5,200.19,200.17,8.13]
[1756586287256,0.5,200.19,200.16,8.68981027]
[1756586287560,0.5,200.19,200.17,8.1]
[1756586287956,0.5,200.19,200.16,8.68981027]
[1756586288159,0.5,200.19,200.17,8.1]
[1756586288356,0.5,200.19,200.16,8.68981027]
[1756586289059,0.5,200.19,200.17,8.1]
[1756586289557,0.5,200.19,200.16,8.68981027]
[1756586289757,0.5,200.19,200.17,8.1]
[1756586289949,0.5,200.19,200.16,8.68981027]
[1756586290149,0.5,200.19,200.17,8.1]
[1756586290555,7.76,200.26,200.17,8.1]
[1756586290759,0.5,200.22,200.21,8.1]
[1756586291853,0.5,200.22,200.2,3.15157175]
[1756586292058,0.5,200.22,200.21,8.1]
[1756586305561,8.26,200.22,200.2,3.15157175]
[1756586307362,8.26,200.22,200.2,11.25157175]
[1756586307562,0.5,200.22,200.21,8.1]
[1756586308964,7.76,200.21,200.19,5.53823852]
[1756586309169,7.76,200.25,200.16,13.63823852]
[1756586309369,0.5,200.19,200.16,5.53823852]
[1756586310272,0.5,200.19,200.17,8.1]
[1756586310472,0.5,200.19,200.16,5.53823852]
[1756586310669,0.5,200.19,200.17,8.1]
[1756586312874,0.5,200.19,200.16,8.1]
[1756586314369,0.5,200.19,200.15,3.15157175]
[1756586314569,0.5,200.19,200.16,8.1]
[1756586314772,0.5,200.19,200.15,3.15157175]
[1756586314973,0.5,200.19,200.16,8.1]
[1756586315273,0.5,200.19,200.15,3.15157175]
[1756586315773,0.5,200.19,200.16,8.1]
[1756586315973,0.5,200.19,200.15,3.15157175]
[1756586316168,0.5,200.19,200.16,8.1]
[1756586316573,0.5,200.19,200.15,3.15157175]
[1756586317075,0.5,200.19,200.16,8.1]
[1756586317275,0.5,200.19,200.15,3.15157175]
[1756586317975,0.5,200.19,200.16,7.88]
[1756586318775,0.5,200.19,200.15,3.15157175]
[1756586319174,0.5,200.19,200.16,7.88]
[1756586319577,0.5,200.19,200.15,3.15157175]
[1756586319778,0.5,200.19,200.16,7.88]
[1756586320181,0.5,200.19,200.15,3.15157175]
[1756586320675,8.64,200.19,200.16,7.88]
[1756586321380,8.64,200.19,200.12,8.32108832]
[1756586321381,8.14,200.23,200.12,8.68981027]
[1756586321581,0.5,200.15,200.12,3.15157175]
[1756586321784,0.5,200.15,200.13,7.88]
[1756586322481,3.15157175,200.24,200.13,7.88]
[1756586322683,0.5,200.14,200.13,7.88]
[1756586326882,0.5,200.14,200.11,5.53823852]
[1756586327085,8.14,200.2,200.11,7.88]
[1756586327279,8.64,200.13,200.1,11.03157175]
[1756586327687,8.14,200.12,200.1,3.15157175]
[1756586327986,8.14,200.12,200.09,7.88]
[1756586328279,8.14,200.17,200.09,7.88]
[1756586328485,0.5,200.11,200.09,7.88]
[1756586328686,0.5,200.11,200.08,5.53823852]
[1756586329288,0.5,200.11,200.09,7.88]
[1756586330187,0.5,200.11,200.07,8.68981027]
[1756586330588,8.14,200.15,200.08,7.88]
[1756586330785,0.5,200.1,200.08,7.88]
[1756586331988,0.5,200.1,200.07,3.15157175]
[1756586332189,0.5,200.1,200.08,7.88]
[1756586332389,0.5,200.1,200.07,3.15157175]
[1756586332590,0.5,200.1,200.08,7.88]
[1756586332887,0.5,200.1,200.07,3.15157175]
[1756586333087,0.5,200.1,200.08,7.88]
[1756586333893,8.14,200.16,200.08,7.88]
[1756586334092,0.5,200.11,200.08,7.88]
[1756586334489,0.5,200.11,200.07,3.15157175]
[1756586335285,0.5,200.11,200.08,7.88]
[1756586335889,0.5,200.11,200.07,8.68981027]
[1756586336091,0.5,200.11,200.08,7.88]
[1756586336491,0.5,200.11,200.07,8.68981027]
[1756586337191,0.5,200.11,200.06,5.53823852]
[1756586337384,0.5,200.11,200.09,7.88]
[1756586337890,0.5,200.11,200.08,3.15157175]
[1756586338090,0.5,200.11,200.09,7.88]
[1756586338292,0.5,200.11,200.08,3.15157175]
[1756586338488,0.5,200.11,200.09,7.88]
[1756586338688,0.5,200.11,200.08,3.15157175]
[1756586339094,0.5,200.11,200.09,7.88]
[1756586339393,8.14,200.16,200.08,3.15157175]
[1756586339592,8.14,200.18,200.09,7.88]
[1756586339793,0.5,200.11,200.09,7.88]
[1756586339992,0.5,200.11,200.08,3.15157175]
[1756586340395,0.5,200.11,200.09,7.88]
[1756586340792,0.5,200.11,200.08,3.15157175]
[1756586340993,0.5,200.11,200.09,7.88]
[1756586341194,0.5,200.11,200.08,3.15157175]
[1756586341396,0.5,200.11,200.09,7.88]
[1756586342787,8.14,200.1,200.08,3.15157175]
[1756586343093,8.14,200.09,200.06,7.88]
[1756586343489,8.14,200.15,200.05,7.88]
[1756586343692,0.5,200.09,200.04,3.15157175]
[1756586344088,0.5,200.09,200.05,7.88]
[1756586344296,0.5,200.09,200.04,3.15157175]
[1756586344793,0.5,200.09,200.05,7.88]
[1756586345394,0.5,200.09,200.04,3.15157175]
[1756586345595,0.5,200.09,200.05,7.88]
[1756586345891,0.5,200.09,200.04,3.15157175]
[1756586346290,0.5,200.09,200.05,7.88]
[1756586346487,0.5,200.09,200.04,3.15157175]
[1756586346888,0.5,200.09,200.05,7.88]
[1756586347092,0.5,200.09,200.04,3.15157175]
[1756586347388,0.5,200.09,200.05,7.81]
[1756586347594,8.57,200.08,200.05,7.81]
[1756586347990,8.57,200.08,200.04,3.15157175]
[1756586347991,8.07,200.07,200.02,8.68981027]
[1756586348195,8.07,200.07,200.03,7.81]
[1756586348398,0.5,200.06,200.03,7.81]
[1756586349497,0.5,200.06,200.02,3.15157175]
[1756586349700,0.5,200.06,200.03,7.81]
[1756586350396,0.5,200.06,200.02,3.15157175]
[1756586351199,0.5,200.06,200.03,7.81]
[1756586351699,0.5,200.06,200.02,3.15157175]
[1756586352793,0.5,200.06,200.03,7.81]
[1756586353500,0.5,200.06,200.02,3.15157175]
[1756586353902,0.5,200.06,200.05,10.96157175]
[1756586355800,0.5,200.06,200.05,7.81]
[1756586360705,0.5,200.06,200.04,121.98]
[1756586360706,8.57,200.06,200.04,129.79]
[1756586360906,8.07,200.06,200.04,129.79]
[1756586362699,0.5,200.05,200.01,404.2951551]
[1756586362899,8.07,200.09,200.01,190.6151551]
[1756586363100,0.5,200.04,200.01,182.8051551]
[1756586363307,0.5,200.04,200.02,7.81]
[1756586364807,0.5,200.04,200.01,182.8051551]
[1756586365404,0.5,200.04,200.02,7.81]
[1756586366002,0.5,200.04,200.01,182.8051551]
[1756586366504,0.5,200.04,200.02,7.81]
[1756586366710,0.5,200.04,200.01,182.8051551]
[1756586367405,0.5,200.04,200.02,7.81]
[1756586367808,0.5,200.04,200.01,182.8051551]
[1756586368308,0.5,200.04,200.02,7.81]
[1756586368717,0.5,200.04,200.01,182.8051551]
[1756586369113,0.5,200.04,200.02,7.81]
[1756586369512,8.57,200.03,200.01,60.8251551]
[1756586369714,8.07,200.01,199.99,7.81]
[1756586369914,8.07,200.01,199.98,34.8]
[1756586370114,0.5,200.0,199.98,42.61]
[1756586370910,0.5,200.0,199.98,34.8]
[1756586371114,0.5,200.0,199.99,7.81]
[1756586374812,0.5,200.0,199.93,8.68981027]
[1756586375012,0.5,199.98,199.94,7.81]
[1756586375206,8.07,200.01,199.93,10.96157175]
[1756586375409,0.5,199.95,199.94,7.81]
[1756586375606,8.07,200.01,199.91,7.81]
[1756586375810,8.07,199.98,199.88,7.81]
[1756586376107,0.5,199.91,199.88,7.81]
[1756586376309,0.5,199.91,199.87,22.12981027]
[1756586376517,0.5,199.91,199.87,8.68981027]
[1756586376909,0.5,199.91,199.88,7.81]
[1756586377210,0.5,199.91,199.87,8.68981027]
[1756586377410,0.5,199.91,199.88,8.1]
[1756586378215,0.5,199.91,199.87,3.15157175]
[1756586378918,0.5,199.91,199.88,8.1]
[1756586379106,0.5,199.91,199.87,3.15157175]
[1756586379816,0.5,199.91,199.88,8.1]
[1756586380020,8.07,199.96,199.88,8.1]
[1756586380214,0.5,199.9,199.88,8.1]
[1756586380421,0.5,199.9,199.87,3.15157175]
[1756586380614,0.5,199.9,199.88,8.1]
[1756586380814,0.5,199.9,199.87,3.15157175]
[1756586381012,0.5,199.9,199.88,8.1]
[1756586381412,0.5,199.9,199.87,3.15157175]
[1756586381610,0.5,199.9,199.88,8.1]
[1756586381812,0.5,199.9,199.87,3.15157175]
[1756586382219,0.5,199.9,199.88,8.1]
[1756586382420,0.5,199.9,199.87,3.15157175]
[1756586382716,0.5,199.9,199.88,8.1]
[1756586383419,0.5,199.9,199.87,3.15157175]
[1756586383621,0.5,199.9,199.88,8.1]
[1756586384123,0.5,199.9,199.87,3.15157175]
[1756586384724,0.5,199.9,199.88,8.1]
[1756586385520,0.5,199.9,199.87,3.15157175]
[1756586385718,0.5,199.9,199.88,8.1]
[1756586386124,0.5,199.9,199.87,3.15157175]
[1756586386520,0.5,199.9,199.88,8.1]
[1756586387218,0.5,199.9,199.87,3.15157175]
[1756586388322,0.5,199.9,199.88,8.1]
[1756586388522,0.5,199.9,199.87,3.15157175]
[1756586389120,0.5,199.9,199.88,8.1]
[1756586389325,0.5,199.9,199.87,3.15157175]
[1756586389721,0.5,199.9,199.88,8.1]
[1756586390620,0.5,199.9,199.87,3.15157175]
[1756586390822,0.5,199.9,199.88,8.1]
[1756586391024,0.5,199.9,199.87,3.15157175]
[1756586391220,0.5,199.9,199.88,8.1]
[1756586391726,0.5,199.9,199.87,3.15157175]
[1756586392127,0.5,199.9,199.88,8.1]
[1756586392829,0.5,199.9,199.87,3.15157175]
[1756586393025,8.04,200.01,199.88,8.1]
[1756586393229,8.04,200.01,199.91,8.1]
[1756586393230,0.5,199.92,199.91,8.1]
[1756586398435,7.6,199.98,199.91,8.1]
[1756586398635,0.5,199.93,199.9,3.15157175]
[1756586398834,0.5,199.93,199.91,8.1]
[1756586399035,0.5,199.93,199.9,3.15157175]
[1756586399236,7.6,199.98,199.91,8.1]
[1756586399436,0.5,199.93,199.91,8.1]
[1756586399631,7.6,199.98,199.91,8.1]
[1756586401641,7.6,199.98,199.88,8.1]
[1756586401834,7.6,199.93,199.87,3.15157175]
[1756586402039,0.5,199.9,199.87,3.15157175]
[1756586402236,0.5,199.9,199.88,8.1]
[1756586402638,0.5,199.9,199.87,3.15157175]
[1756586402840,0.5,199.9,199.88,8.1]
[1756586403641,7.6,199.96,199.88,8.1]
[1756586403836,0.5,199.93,199.92,8.1]
[1756586406342,7.6,200.0,199.92,8.1]
[1756586406543,0.5,199.94,199.91,3.15157175]
[1756586407243,0.5,199.94,199.92,8.1]
[1756586407435,0.5,199.94,199.92,7.98]
[1756586407634,0.5,199.94,199.91,3.15157175]
[1756586407834,0.5,199.94,199.92,7.98]
[1756586408040,0.5,199.94,199.91,3.15157175]
[1756586408439,0.5,199.94,199.92,7.98]
[1756586408934,0.5,199.94,199.91,3.15157175]
[1756586409139,7.63,200.12,199.92,7.98]
[1756586409343,2.01539461,200.08,200.0,2.01539461]
[1756586409642,7.63,200.07,200.0,2.01539461]
[1756586409836,0.5,200.01,200.0,2.01539461]
[1756586410643,0.5,200.01,199.95,13.57045089]
[1756586410839,7.63,200.07,200.0,2.01539461]
[1756586411233,0.5,200.01,200.0,2.01539461]
[1756586411436,0.5,200.01,199.99,7.98]
[1756586411641,7.63,200.08,199.99,7.98]
[1756586411835,0.5,200.0,199.99,7.98]
[1756586415041,3.14888029,200.09,199.99,7.98]
[1756586415348,0.5,200.02,199.99,7.98]
[1756586415544,0.5,200.02,199.98,3.14888029]
[1756586415943,0.5,200.02,199.99,7.98]
[1756586416139,0.5,200.02,199.98,3.14888029]
[1756586417348,0.5,200.02,199.99,7.98]
[1756586417549,0.5,200.02,199.98,3.14888029]
[1756586417742,0.5,200.02,200.01,11.12888029]
[1756586419249,7.63,200.01,199.97,13.57045089]
[1756586419551,7.63,200.01,199.98,11.12888029]
[1756586422157,0.5,200.01,199.95,5.59045089]
[1756586422351,7.63,200.05,199.94,3.14888029]
[1756586422546,7.63,200.05,199.93,11.12888029]
[1756586422750,0.5,199.96,199.93,11.12888029]
[1756586423151,0.5,199.96,199.94,7.98]
[1756586428156,7.63,199.95,199.93,3.14888029]
[1756586428356,0.5,199.96,199.93,3.14888029]
[1756586428556,0.5,199.96,199.94,7.98]
[1756586428858,0.5,199.96,199.93,3.14888029]
[1756586429956,0.5,199.96,199.94,7.98]
[1756586433667,0.5,199.96,199.93,3.14888029]
[1756586433868,0.5,199.96,199.94,7.98]
[1756586435264,0.5,199.96,199.93,3.14888029]
[1756586435466,0.5,199.96,199.94,7.98]
[1756586435765,0.5,199.96,199.93,3.14888029]
[1756586436361,0.5,199.96,199.94,7.98]
[1756586437964,0.5,199.96,199.93,8.73933118]
[1756586438168,0.5,199.96,199.94,7.8]
[1756586438563,0.5,199.96,199.93,8.73933118]
[1756586438763,7.63,200.03,199.94,7.8]
[1756586438962,0.5,199.97,199.94,7.8]
[1756586439969,0.5,199.97,199.93,8.73933118]
[1756586440169,0.5,199.97,199.94,7.8]
[1756586440463,0.5,199.97,199.93,8.73933118]
[1756586440865,0.5,199.97,199.94,7.8]
[1756586441264,0.5,199.97,199.93,8.73933118]
[1756586441563,7.57,200.04,199.97,7.8]
[1756586441768,0.5,200.0,199.99,3.14888029]
[1756586441968,0.5,200.0,199.99,10.94888029]
[1756586445267,0.5,200.0,199.99,3.14888029]
[1756586445468,0.5,200.0,199.94,5.59045089]
[1756586445766,3.14888029,200.04,199.93,10.94888029]
[1756586445962,0.5,199.95,199.93,10.94888029]
[1756586446168,0.5,199.95,199.93,3.14888029]
[1756586446369,7.57,199.98,199.94,7.8]
[1756586446570,0.5,199.96,199.94,7.8]
[1756586450581,0.5,199.96,199.93,8.73933118]
[1756586451083,7.57,200.01,199.94,7.8]
[1756586451282,0.5,199.97,199.94,7.8]
[1756586451478,0.5,199.97,199.94,13.39045089]
[1756586451679,0.5,199.97,199.94,5.59045089]
[1756586451879,0.5,199.97,199.95,7.8]
[1756586452085,0.5,199.97,199.94,5.59045089]
[1756586453882,0.5,199.97,199.95,7.8]
[1756586454185,0.5,199.97,199.94,5.59045089]
[1756586454381,0.5,199.97,199.95,7.8]
[1756586454578,0.5,199.97,199.94,5.59045089]
[1756586454778,0.5,199.97,199.96,10.94888029]
[1756586456186,7.57,200.01,199.96,3.14888029]
[1756586456490,0.5,199.98,199.97,7.8]
[1756586457693,7.57,200.05,199.97,7.8]
[1756586457891,7.57,200.05,199.96,5.59045089]
[1756586457892,0.5,199.99,199.96,5.59045089]
[1756586458191,0.5,199.99,199.98,10.94888029]
[1756586459286,7.57,200.05,199.98,10.94888029]
[1756586462690,7.57,199.98,199.96,5.59045089]
[1756586462893,0.5,199.99,199.96,7.8]
[1756586463094,7.57,199.98,199.96,7.8]
[1756586463997,0.5,199.99,199.96,7.8]
[1756586464801,8.07,199.99,199.96,7.8]
[1756586467297,0.5,199.97,199.95,5.59045089]
[1756586467501,7.43,200.03,199.93,5.59045089]
[1756586467702,0.5,199.96,199.93,7.55]
[1756586467897,0.5,199.96,199.92,5.59045089]
[1756586469201,0.5,199.96,199.93,7.55]
[1756586469403,0.5,199.96,199.92,5.59045089]
[1756586469599,0.5,199.96,199.95,7.55]
[1756586470001,0.5,199.96,199.95,13.14045089]
[1756586474403,7.43,200.01,199.95,7.55]
[1756586474605,0.5,199.98,199.97,7.55]
[1756586475000,0.5,199.98,199.97,10.69888029]
[1756586475200,7.43,200.11,199.98,7.55]
[1756586475400,0.5,200.01,199.98,7.55]
[1756586475602,0.5,200.01,200.0,10.69888029]
[1756586477304,7.43,200.08,200.0,3.14888029]
[1756586477498,0.5,200.02,200.01,7.55]
[1756586477698,0.5,200.02,200.01,13.16205228]
[1756586478498,7.43,200.08,200.01,13.16205228]
[1756586478698,0.5,200.04,200.01,5.61205228]
[1756586478899,0.5,200.04,200.02,7.55]
[1756586479102,0.5,200.04,200.01,5.61205228]
[1756586479298,0.5,200.04,200.0,8.76093257]
[1756586479499,0.5,200.04,200.01,5.61205228]
[1756586479697,0.5,200.04,200.02,7.55]
[1756586479897,0.5,200.04,200.01,5.61205228]
[1756586480707,0.5,200.04,200.02,7.55]
[1756586480909,0.5,200.04,200.01,5.61205228]
[1756586481403,0.5,200.04,200.02,7.55]
[1756586481605,0.5,200.04,200.01,5.61205228]
[1756586481815,0.5,200.04,200.02,7.55]
[1756586482109,0.5,200.04,200.01,5.61205228]
[1756586482910,0.5,200.04,200.03,3.14888029]
[1756586483101,0.5,200.04,200.03,10.69888029]
[1756586492114,335.9,200.13,200.03,10.69888029]
[1756586492413,0.5,200.06,200.02,7.55]
[1756586492616,0.5,200.06,200.01,5.61205228]
[1756586492809,0.5,200.06,200.02,7.55]
[1756586493112,0.5,200.06,200.01,5.61205228]
[1756586493309,0.5,200.06,200.02,7.55]
[1756586493508,0.5,200.06,200.05,10.69888029]
[1756586494116,7.43,200.05,200.02,10.69888029]
[1756586494315,7.43,200.12,200.02,10.69888029]
[1756586494517,0.5,200.05,200.02,3.14888029]
[1756586494712,0.5,200.05,200.03,7.55]
[1756586495216,0.5,200.05,200.02,3.14888029]
[1756586495712,0.5,200.05,200.03,7.55]
[1756586495910,0.5,200.05,200.02,3.14888029]
[1756586496715,0.5,200.05,200.03,7.55]
[1756586497118,0.5,200.05,200.02,3.14888029]
[1756586497318,0.5,200.05,200.03,7.89]
[1756586497516,0.5,200.05,200.02,3.14888029]
[1756586497918,0.5,200.05,200.03,7.89]
[1756586498619,0.5,200.05,200.02,3.14888029]
[1756586498820,0.5,200.05,200.03,7.89]
[1756586499321,0.5,200.05,200.02,3.14888029]
[1756586499618,0.5,200.05,200.03,7.89]
[1756586499822,0.5,200.05,200.02,3.14888029]
[1756586500312,0.5,200.05,200.03,7.89]
[1756586500511,0.5,200.05,200.02,3.14888029]
[1756586500717,0.5,200.05,200.03,7.89]
[1756586500913,0.5,200.05,200.02,3.14888029]
[1756586501120,0.5,200.05,200.04,3.14888029]
[1756586501322,0.5,200.05,200.04,11.03888029]
[1756586509430,0.5,200.05,200.04,9.90416025]
[1756586515924,0.5,200.05,200.01,5.61205228]
[1756586516127,8.13,200.09,200.04,2.01416025]
[1756586518027,8.63,200.05,200.04,2.01416025]
[1756586519223,8.13,200.05,200.04,2.01416025]
[1756586521433,8.13,200.09,200.04,9.90416025]
[1756586521629,8.63,200.05,200.04,2.01416025]
[1756586522529,8.63,200.05,199.97,33.68]
[1756586522530,8.63,200.05,200.0,5.61205228]
[1756586522738,8.13,200.05,200.0,2.01416025]
[1756586523033,2.01416025,200.06,200.0,2.01416025]
[1756586523034,0.5,200.01,200.0,2.01416025]
[1756586523537,0.5,200.01,200.0,9.90416025]
[1756586526937,0.5,200.01,200.0,7.89]
[1756586527132,0.5,200.01,199.97,5.61205228]
[1756586527332,8.13,200.0,199.98,2.01416025]
[1756586527536,8.63,200.0,199.98,2.01416025]
[1756586532844,8.63,200.0,199.97,7.89]
[1756586533044,7.97,200.0,199.98,2.01416025]
[1756586533240,0.5,199.99,199.95,7.6]
[1756586533545,7.47,199.99,199.93,2.01416025]
[1756586533751,7.47,199.95,199.93,2.01416025]
[1756586533947,7.97,199.95,199.93,9.61416025]
[1756586534342,0.5,199.95,199.94,7.6]
[1756586535040,0.5,199.95,199.93,9.61416025]
[1756586536148,0.5,199.95,199.94,7.6]
[1756586537043,7.47,199.94,199.92,121.82]
[1756586537245,7.47,199.94,199.93,2.01416025]
[1756586537548,7.97,199.94,199.92,121.82]
[1756586538543,0.5,199.94,199.93,7.6]
[1756586541345,0.5,199.94,199.92,129.42]
[1756586542549,0.5,199.94,199.92,121.82]
[1756586542744,0.5,199.94,199.93,7.6]
[1756586550957,3.15138033,200.03,199.93,7.6]
[1756586551160,0.5,199.95,199.93,7.6]
[1756586551956,0.5,199.95,199.92,124.97138033]
[1756586552255,0.5,199.95,199.93,7.6]
[1756586552447,7.47,200.0,199.93,7.6]
[1756586552651,0.5,199.96,199.93,7.6]
[1756586553048,7.47,200.0,199.93,7.6]
[1756586553255,0.5,199.96,199.93,7.6]
[1756586553761,0.5,199.96,199.95,10.75138033]
[1756586553954,0.5,199.96,199.95,132.57138033]
[1756586556659,0.5,199.96,199.95,129.42]
[1756586557760,3.15138033,200.05,199.96,7.99]
[1756586557761,7.95,200.03,199.96,7.99]
[1756586558057,0.5,199.97,199.96,7.99]
[1756586559258,0.5,199.97,199.96,10.00596378]
[1756586560764,0.5,199.97,199.96,35.14596378]
[1756586565570,0.5,199.97,199.96,7.99]
[1756586565769,0.5,199.97,199.96,10.00596378]
[1756586573173,7.95,200.07,199.96,2.01596378]
[1756586573364,5.53492552,200.12,200.02,2.01596378]
[1756586573365,2.01596378,200.09,200.02,2.01596378]
[1756586573566,7.95,200.08,200.02,2.01596378]
[1756586573764,0.5,200.03,200.02,7.99]
[1756586573962,0.5,200.03,200.02,10.00596378]
[1756586579283,7.95,200.08,200.02,10.00596378]
[1756586582679,2.01596378,200.1,200.02,10.00596378]
[1756586582880,0.5,200.03,200.02,10.00596378]
[1756586587682,9.94596378,200.1,200.02,2.01596378]
[1756586587884,0.5,200.05,200.03,7.41]
[1756586588085,0.5,200.05,200.0,7.41]
[1756586589188,0.5,200.05,200.04,9.42596378]
[1756586590784,0.5,200.05,200.04,2.01596378]
[1756586590984,0.5,200.05,199.98,5.61205228]
[1756586590985,7.93,200.04,200.03,2.01596378]
[1756586591490,8.43,200.04,200.03,2.01596378]
[1756586594194,8.43,200.04,200.01,2.01596378]
[1756586594388,7.93,200.07,200.01,2.01596378]
[1756586594584,8.43,200.02,200.01,2.01596378]
[1756586603204,7.93,200.05,200.01,9.42596378]
[1756586603398,0.5,200.03,199.97,13.02205228]
[1756586603597,0.5,200.03,199.98,7.41]
[1756586604602,0.5,200.03,200.02,9.42596378]
[1756586605002,0.5,200.03,199.98,7.41]
[1756586605003,8.43,200.03,199.98,7.41]
[1756586605203,8.43,200.03,200.02,2.01596378]
[1756586607210,0.5,200.03,200.02,9.42596378]
[1756586609301,0.5,200.03,200.02,7.41]
[1756586609508,0.5,200.03,200.02,9.42596378]
[1756586614709,7.93,200.08,200.02,9.42596378]
[1756586614905,0.5,200.04,200.01,5.61205228]
[1756586615109,7.93,200.08,200.02,7.41]
[1756586616010,7.93,200.11,200.06,2.01596378]
[1756586616508,8.43,200.07,200.06,2.01596378]
[1756586618504,0.5,200.07,200.06,10.06596378]
[1756586619511,8.63,200.07,200.06,2.01596378]
[1756586626508,8.13,200.18,200.06,10.06596378]
[1756586626810,0.86993475,200.19,200.06,8.05]